fUST/lending_fUST_20250812
["ID","MTS","AMOUNT","RATE_DAILY","PERIOD"]
[378713536,1754986240768,-151.0,0.00018657,2]
[378713537,1754986240777,-151.0,0.00018657,2]
[378713538,1754986240787,-158.790613,0.00018657,2]
[378713539,1754986240797,-423.40433545,0.00018657,2]
[378713540,1754986240806,-460.0,0.00018657,2]
[378713541,1754986240816,-638.81,0.00018657,2]
[378713542,1754986240826,-151.0,0.00018657,2]
[378713543,1754986240835,-696.6,0.00018657,2]
[378713544,1754986240845,-297.751149,0.00018657,2]
[378713545,1754986240855,-297.751149,0.00018657,2]
[378713546,1754986240864,-297.751149,0.00018657,2]
[378713547,1754986240874,-297.751149,0.00018657,2]
[378713548,1754986240884,-151.0,0.00018657,2]
[378713549,1754986240893,-297.751149,0.00018657,2]
[378713550,1754986240902,-151.0,0.00018657,2]
[378713551,1754986240912,-151.46679,0.00018657,2]
[378713552,1754986240921,-297.751149,0.00018657,2]
[378713553,1754986240931,-297.751149,0.00018657,2]
[378713554,1754986240940,-297.751149,0.00018657,2]
[378713555,1754986240952,-297.751149,0.00018657,2]
[378713556,1754986240966,-297.751149,0.00018657,2]
[378713557,1754986240975,-461.41040877,0.00018657,2]
[378713558,1754986240984,-460.0,0.00018657,2]
[378713559,1754986240993,-460.0,0.00018657,2]
[378713560,1754986241002,-1486.58,0.00018657,2]
[378713561,1754986241011,-460.0,0.00018657,2]
[378713562,1754986241021,-479.11,0.00018657,2]
[378713563,1754986241034,-151.0,0.00018657,2]
[378713564,1754986241043,-151.0,0.00018657,2]
[378713565,1754986241052,-151.0,0.00018657,2]
[378713566,1754986241061,-151.0,0.00018657,2]
[378713567,1754986241071,-290.716907,0.00018657,2]
[378713568,1754986241080,-151.0,0.00018657,2]
[378713569,1754986241090,-151.0,0.00018657,2]
[378713570,1754986241100,-151.0,0.00018657,2]
[378713571,1754986241109,-151.0,0.00018657,2]
[378713572,1754986241119,-151.0,0.00018657,2]
[378713573,1754986241128,-460.0,0.00018657,2]
[378713574,1754986241138,-909.88,0.00018657,2]
[378713575,1754986241147,-602.48,0.00018657,2]
[378713576,1754986241156,-460.0,0.00018657,2]
[378713577,1754986241166,-460.0,0.00018657,2]
[378713578,1754986241175,-401.423994,0.00018657,2]
[378713579,1754986241184,-401.423994,0.00018657,2]
[378713580,1754986241194,-401.423994,0.00018657,2]
[378713581,1754986241203,-401.423994,0.00018657,2]
[378713582,1754986241213,-401.423994,0.00018657,2]
[378713583,1754986241222,-460.0,0.00018657,2]
[378713584,1754986241232,-151.0,0.00018657,2]
[378713585,1754986241241,-151.0,0.00018657,2]
[378713586,1754986241250,-500.0,0.00018657,2]
[378713587,1754986241259,-151.0,0.00018657,2]
[378713588,1754986241268,-500.0,0.00018657,2]
[378713589,1754986241277,-500.0,0.00018657,2]
[378713590,1754986241287,-460.83948905,0.00018657,2]
[378713591,1754986241296,-500.0,0.00018657,2]
[378713592,1754986241306,-151.0,0.00018657,2]
[378713593,1754986241315,-151.0,0.00018657,2]
[378713594,1754986241324,-151.0,0.00018657,2]
[378713595,1754986241334,-151.0,0.00018657,2]
[378713596,1754986241344,-151.0,0.00018657,2]
[378713597,1754986241354,-151.0,0.00018657,2]
[378713598,1754986241363,-151.0,0.00018657,2]
[378713599,1754986241373,-151.0,0.00018657,2]
[378713600,1754986241386,-190.617263,0.00018657,2]
[378713601,1754986241395,-151.0,0.00018657,2]
[378713602,1754986241404,-161.966104,0.00018657,2]
[378713603,1754986241414,-161.966104,0.00018657,2]
[378713604,1754986241424,-161.966104,0.00018657,2]
[378713605,1754986241433,-161.966104,0.00018657,2]
[378713606,1754986241442,-161.966104,0.00018657,2]
[378713607,1754986241452,-161.966104,0.00018657,2]
[378713608,1754986241462,-161.966104,0.00018657,2]
[378713609,1754986241471,-161.966104,0.00018657,2]
[378713610,1754986241480,-161.966104,0.00018657,2]
[378713611,1754986241490,-161.966104,0.00018657,2]
[378713612,1754986241499,-161.966104,0.00018657,2]
[378713613,1754986241508,-161.966104,0.00018657,2]
[378713614,1754986241518,-161.966104,0.00018657,2]
[378713615,1754986241527,-161.966104,0.00018657,2]
[378713616,1754986241536,-521.2,0.00018657,2]
[378713617,1754986241548,-460.0,0.00018657,2]
[378713618,1754986241565,-191.671207,0.00018657,2]
[378713619,1754986241576,-460.0,0.00018657,2]
[378713620,1754986241585,-360.0,0.00018657,2]
[378713621,1754986241595,-500.0,0.00018657,2]
[378713622,1754986241604,-500.0,0.00018657,2]
[378713623,1754986241614,-460.0,0.00018657,2]
[378713624,1754986241623,-151.0,0.00018657,2]
[378713625,1754986241633,-460.0,0.00018657,2]
[378713626,1754986241644,-817.95,0.00018657,2]
[378713627,1754986241654,-500.0,0.00018657,2]
[378713628,1754986241663,-151.0,0.00018657,2]
[378713629,1754986241673,-539.04,0.00018657,2]
[378713630,1754986241684,-151.0,0.00018657,2]
[378713631,1754986241694,-460.0,0.00018657,2]
[378713632,1754986241704,-151.0,0.00018657,2]
[378713633,1754986241714,-500.0,0.00018657,2]
[378713634,1754986241723,-460.0,0.00018657,2]
[378713635,1754986241732,-1596.61,0.00018657,2]
[378713636,1754986241741,-500.0,0.00018657,2]
[378713637,1754986241751,-500.0,0.00018657,2]
[378713638,1754986241761,-151.67827244,0.00018657,2]
[378713639,1754986241770,-152.92996,0.00018657,2]
[378713640,1754986241779,-460.0,0.00018657,2]
[378713641,1754986241789,-661.3,0.00018657,2]
[378713642,1754986241798,-437.221491,0.00018657,2]
[378713643,1754986241807,-437.221491,0.00018657,2]
[378713644,1754986241818,-437.221491,0.00018657,2]
[378713645,1754986241828,-437.221491,0.00018657,2]
[378713646,1754986241838,-437.221491,0.00018657,2]
[378713647,1754986241848,-437.221491,0.00018657,2]
[378713648,1754986241858,-437.221491,0.00018657,2]
[378713649,1754986241867,-437.221491,0.00018657,2]
[378713650,1754986241877,-437.221491,0.00018657,2]
[378713651,1754986241887,-437.221491,0.00018657,2]
[378713652,1754986241896,-437.221491,0.00018657,2]
[378713653,1754986241905,-437.221491,0.00018657,2]
[378713654,1754986241915,-437.221491,0.00018657,2]
[378713655,1754986241924,-437.221491,0.00018657,2]
[378713656,1754986241936,-460.0,0.00018657,2]
[378713657,1754986241946,-460.0,0.00018657,2]
[378713658,1754986241957,-463.72463163,0.00018657,2]
[378713659,1754986241967,-460.0,0.00018657,2]
[378713660,1754986241976,-629.44,0.00018657,2]
[378713661,1754986241985,-460.0,0.00018657,2]
[378713662,1754986241994,-200.0,0.00018657,2]
[378713663,1754986242005,-151.0,0.00018657,2]
[378713664,1754986242014,-463.35927157,0.00018657,2]
[378713665,1754986242025,-233.0,0.00018657,2]
[378713666,1754986242039,-460.0,0.00018657,2]
[378713667,1754986242049,-460.0,0.00018657,2]
[378713668,1754986242060,-460.0,0.00018657,2]
[378713669,1754986242071,-460.0,0.00018657,2]
[378713670,1754986242080,-460.0,0.00018657,2]
[378713671,1754986242090,-275.289959,0.00018657,2]
[378713672,1754986242100,-275.289959,0.00018657,2]
[378713673,1754986242109,-275.289959,0.00018657,2]
[378713674,1754986242118,-275.289959,0.00018657,2]
[378713675,1754986242127,-275.289959,0.00018657,2]
[378713676,1754986242137,-275.289959,0.00018657,2]
[378713677,1754986242146,-275.289959,0.00018657,2]
[378713678,1754986242155,-460.0,0.00018657,2]
[378713679,1754986242164,-275.289959,0.00018657,2]
[378713680,1754986242173,-275.289959,0.00018657,2]
[378713681,1754986242182,-275.289959,0.00018657,2]
[378713682,1754986242192,-275.289959,0.00018657,2]
[378713683,1754986242201,-275.289959,0.00018657,2]
[378713684,1754986242211,-275.289959,0.00018657,2]
[378713685,1754986242220,-275.28995,0.00018657,2]
[378713686,1754986242229,-460.0,0.00018657,2]
[378713687,1754986242238,-460.0,0.00018657,2]
[378713688,1754986242247,-460.0,0.00018657,2]
[378713689,1754986242256,-151.0,0.00018657,2]
[378713690,1754986242265,-151.0,0.00018657,2]
[378713692,1754986242275,-151.0,0.00018657,2]
[378713694,1754986242284,-151.0,0.00018657,2]
[378713695,1754986242292,-460.0,0.00018657,2]
[378713696,1754986242301,-151.0,0.00018657,2]
[378713697,1754986242311,-460.0,0.00018657,2]
[378713698,1754986242320,-2125.42,0.00018657,2]
[378713699,1754986242329,-460.0,0.00018657,2]
[378713700,1754986242339,-460.0,0.00018657,2]
[378713701,1754986242348,-173.596924,0.00018657,2]
[378713704,1754986242357,-173.596924,0.00018657,2]
[378713706,1754986242367,-173.596924,0.00018657,2]
[378713707,1754986242376,-173.596924,0.00018657,2]
[378713708,1754986242385,-173.596924,0.00018657,2]
[378713710,1754986242394,-376.10920517,0.00018657,2]
[378713711,1754986242404,-173.596924,0.00018657,2]
[378713712,1754986242419,-173.596924,0.00018657,2]
[378713713,1754986242428,-173.596924,0.00018657,2]
[378713714,1754986242437,-173.596924,0.00018657,2]
[378713715,1754986242446,-460.0,0.00018657,2]
[378713716,1754986242456,-173.59692,0.00018657,2]
[378713717,1754986242465,-460.0,0.00018657,2]
[378713719,1754986242474,-460.0,0.00018657,2]
[378713720,1754986242484,-460.0,0.00018657,2]
[378713721,1754986242493,-460.0,0.00018657,2]
[378713722,1754986242502,-460.0,0.00018657,2]
[378713723,1754986242511,-460.0,0.00018657,2]
[378713724,1754986242520,-168.60759206,0.00018657,2]
[378713725,1754986242530,-151.0,0.00018658,2]
[378713726,1754986242539,-151.0,0.00018658,2]
[378713727,1754986242548,-151.0,0.00018658,2]
[378713728,1754986242557,-151.0,0.00018658,2]
[378713729,1754986242566,-151.0,0.00018658,2]
[378713730,1754986242576,-151.0,0.00018658,2]
[378713731,1754986242587,-151.0,0.00018658,2]
[378713732,1754986242596,-151.0,0.00018658,2]
[378713733,1754986242605,-151.0,0.00018658,2]
[378713734,1754986242614,-151.0,0.00018658,2]
[378713735,1754986242623,-151.0,0.00018658,2]
[378713736,1754986242632,-151.0,0.00018658,2]
[378713737,1754986242642,-153.175718,0.00018658,2]
[378713738,1754986242651,-467.61506618,0.00018658,2]
[378713739,1754986242660,-460.0,0.00018658,2]
[378713740,1754986242669,-588.06,0.00018658,2]
[378713741,1754986242679,-151.0,0.00018658,2]
[378713742,1754986242690,-151.0,0.00018658,2]
[378713743,1754986242699,-151.0,0.00018658,2]
[378713744,1754986242708,-151.0,0.00018658,2]
[378713745,1754986242718,-151.0,0.00018658,2]
[378713746,1754986242728,-151.0,0.00018658,2]
[378713747,1754986242738,-151.0,0.00018658,2]
[378713748,1754986242747,-151.0,0.00018658,2]
[378713749,1754986242757,-151.0,0.00018658,2]
[378713750,1754986242766,-151.0,0.00018658,2]
[378713751,1754986242775,-151.0,0.00018658,2]
[378713752,1754986242784,-151.0,0.00018658,2]
[378713753,1754986242794,-178.922034,0.00018658,2]
[378713754,1754986242803,-460.0,0.00018658,2]
[378713755,1754986242812,-474.95595229,0.00018658,2]
[378713756,1754986242822,-460.0,0.00018658,2]
[378713757,1754986242831,-511.95277624,0.00018658,2]
[378713758,1754986242842,-460.0,0.00018658,2]
[378713760,1754986242851,-460.0,0.00018658,2]
[378713762,1754986242860,-460.0,0.00018658,2]
[378713764,1754986242869,-460.0,0.00018658,2]
[378713766,1754986242878,-460.0,0.00018658,2]
[378713768,1754986242888,-582.62005579,0.00018658,2]
[378713769,1754986242897,-474.05824517,0.00018658,2]
[378713771,1754986242907,-427.16410136,0.00018658,2]
[378713772,1754986242916,-460.0,0.00018658,2]
[378713774,1754986242925,-230.68082997,0.00018658,2]
[378713775,1754986242935,-545.52702893,0.00018658,2]
[378713776,1754986242944,-460.0,0.00018658,2]
[378713777,1754986242954,-460.0,0.00018658,2]
[378713778,1754986242963,-460.0,0.00018658,2]
[378713779,1754986242972,-505.44282443,0.00018658,2]
[378713780,1754986242982,-460.0,0.00018658,2]
[378713781,1754986242991,-460.0,0.00018658,2]
[378713782,1754986243000,-460.0,0.00018658,2]
[378713783,1754986243009,-233.98641121,0.00018658,2]
[378713784,1754986243185,-151.0,0.00018658,2]
[378713785,1754986243195,-151.0,0.00018658,2]
[378713786,1754986243204,-151.0,0.00018658,2]
[378713787,1754986243214,-212.572643,0.00018658,2]
[378713788,1754986243223,-463.61882683,0.00018658,2]
[378713789,1754986243232,-460.0,0.00018658,2]
[378713790,1754986243242,-276.5848122,0.00018658,2]
[378713792,1754986243251,-460.0,0.00018658,2]
[378713793,1754986243261,-509.93,0.00018658,2]
[378713794,1754986243270,-503.23,0.00018658,2]
[378713795,1754986243279,-460.0,0.00018658,2]
[378713796,1754986243289,-460.0,0.00018658,2]
[378713797,1754986243298,-465.26610762,0.00018658,2]
[378713798,1754986243308,-460.0,0.00018658,2]
[378713799,1754986243317,-460.0,0.00018658,2]
[378713800,1754986243326,-460.0,0.00018658,2]
[378713801,1754986243335,-460.89723726,0.00018658,2]
[378713803,1754986243345,-460.0,0.00018658,2]
[378713804,1754986243354,-482.74680707,0.00018658,2]
[378713805,1754986243364,-460.0,0.00018658,2]
[378713806,1754986243373,-464.83018892,0.00018658,2]
[378713807,1754986243382,-461.08976152,0.00018658,2]
[378713808,1754986243392,-460.0,0.00018658,2]
[378713809,1754986243401,-461.09447865,0.00018658,2]
[378713810,1754986243410,-463.20785994,0.00018658,2]
[378713811,1754986243419,-460.0,0.00018658,2]
[378713812,1754986243429,-460.0,0.00018658,2]
[378713813,1754986243438,-461.23930573,0.00018658,2]
[378713814,1754986243447,-460.0,0.00018658,2]
[378713815,1754986243457,-460.0,0.00018658,2]
[378713816,1754986243466,-500.0,0.00018658,2]
[378713817,1754986243476,-460.0,0.00018658,2]
[378713818,1754986243485,-460.0,0.00018658,2]
[378713819,1754986243495,-460.0,0.00018658,2]
[378713820,1754986243504,-460.0,0.00018658,2]
[378713821,1754986243513,-460.0,0.00018658,2]
[378713822,1754986243523,-460.0,0.00018658,2]
[378713823,1754986243533,-460.0,0.00018658,2]
[378713824,1754986243542,-460.0,0.00018658,2]
[378713825,1754986243551,-460.0,0.00018658,2]
[378713826,1754986243561,-460.0,0.00018658,2]
[378713827,1754986243570,-1000.0,0.00018658,2]
[378713828,1754986243580,-460.0,0.00018658,2]
[378713829,1754986243589,-460.0,0.00018658,2]
[378713830,1754986243598,-461.78775046,0.00018658,2]
[378713831,1754986243607,-460.0,0.00018658,2]
[378713832,1754986243616,-461.19761266,0.00018658,2]
[378713833,1754986243625,-460.0,0.00018658,2]
[378713834,1754986243635,-460.0,0.00018658,2]
[378713835,1754986243644,-460.0,0.00018658,2]
[378713836,1754986243654,-524.93878312,0.00018658,2]
[378713837,1754986243664,-460.0,0.00018658,2]
[378713838,1754986243673,-460.0,0.00018658,2]
[378713839,1754986243683,-463.30837387,0.00018658,2]
[378713840,1754986243692,-473.39,0.00018658,2]
[378713841,1754986243701,-460.0,0.00018658,2]
[378713842,1754986243711,-460.0,0.00018658,2]
[378713843,1754986243721,-465.28484502,0.00018658,2]
[378713844,1754986243731,-456.89701669,0.00018658,2]
[378713845,1754986243740,-460.0,0.00018658,2]
[378713846,1754986243750,-460.0,0.00018658,2]
[378713848,1754986243759,-460.0,0.00018658,2]
[378713850,1754986243768,-460.0,0.00018658,2]
[378713852,1754986243778,-460.0,0.00018658,2]
[378713854,1754986243787,-460.0,0.00018658,2]
[378713856,1754986243797,-460.0,0.00018658,2]
[378713858,1754986243807,-462.1806674,0.00018658,2]
[378713860,1754986243816,-324.50461383,0.00018658,2]
[378713862,1754986243825,-460.0,0.00018658,2]
[378713864,1754986243835,-460.0,0.00018658,2]
[378713866,1754986243845,-462.97561551,0.00018658,2]
[378713868,1754986243855,-263.758689,0.00018658,2]
[378713870,1754986243864,-460.0,0.00018658,2]
[378713872,1754986243874,-464.92973893,0.00018658,2]
[378713874,1754986243884,-1011.16,0.00018658,2]
[378713876,1754986243893,-460.0,0.00018658,2]
[378713878,1754986243903,-460.0,0.00018658,2]
[378713879,1754986243912,-460.45418353,0.00018658,2]
[378713880,1754986243922,-460.0,0.00018658,2]
[378713881,1754986243931,-460.0,0.00018658,2]
[378713882,1754986243941,-460.0,0.00018658,2]
[378713883,1754986243951,-460.69659861,0.00018658,2]
[378713884,1754986243960,-460.0,0.00018658,2]
[378713885,1754986243970,-297.751149,0.00018658,2]
[378713886,1754986243979,-297.751149,0.00018658,2]
[378713887,1754986243988,-297.751149,0.00018658,2]
[378713888,1754986243997,-460.0,0.00018658,2]
[378713889,1754986244007,-297.751149,0.00018658,2]
[378713890,1754986244016,-460.0,0.00018658,2]
[378713891,1754986244027,-297.751149,0.00018658,2]
[378713892,1754986244038,-297.751149,0.00018658,2]
[378713893,1754986244047,-297.751149,0.00018658,2]
[378713894,1754986244057,-297.751149,0.00018658,2]
[378713895,1754986244066,-297.751149,0.00018658,2]
[378713896,1754986244077,-297.751141,0.00018658,2]
[378713897,1754986244086,-788.95,0.00018658,2]
[378713898,1754986244096,-460.0,0.00018658,2]
[378713899,1754986244107,-460.0,0.00018658,2]
[378713900,1754986244116,-460.0,0.00018658,2]
[378713901,1754986244126,-460.0,0.00018658,2]
[378713902,1754986244135,-460.0,0.00018658,2]
[378713903,1754986244145,-3799.219065,0.00018658,2]
[378713904,1754986244155,-3799.21905809,0.00018658,2]
[378713905,1754986244164,-480.68063245,0.00018658,2]
[378713906,1754986244173,-460.0,0.00018658,2]
[378713907,1754986244182,-460.0,0.00018658,2]
[378713908,1754986244191,-460.0,0.00018658,2]
[378713909,1754986244201,-460.0,0.00018658,2]
[378713910,1754986244210,-401.423994,0.00018658,2]
[378713911,1754986244219,-401.423994,0.00018658,2]
[378713912,1754986244229,-401.423994,0.00018658,2]
[378713913,1754986244238,-401.423994,0.00018658,2]
[378713914,1754986244247,-460.0,0.00018658,2]
[378713915,1754986244256,-401.423994,0.00018658,2]
[378713916,1754986244266,-460.0,0.00018658,2]
[378713917,1754986244275,-401.423994,0.00018658,2]
[378713918,1754986244285,-401.423994,0.00018658,2]
[378713919,1754986244294,-401.423994,0.00018658,2]
[378713920,1754986244304,-401.423994,0.00018658,2]
[378713921,1754986244313,-401.423991,0.00018658,2]
[378713922,1754986244323,-221.76112064,0.00018658,2]
[378713923,1754986244332,-460.0,0.00018658,2]
[378713924,1754986244341,-161.966104,0.00018658,2]
[378713925,1754986244351,-161.966104,0.00018658,2]
[378713926,1754986244361,-161.966104,0.00018658,2]
[378713927,1754986244370,-161.966104,0.00018658,2]
[378713928,1754986244379,-161.966104,0.00018658,2]
[378713929,1754986244389,-161.966098,0.00018658,2]
[378713930,1754986244398,-460.0,0.00018658,2]
[378713931,1754986244408,-460.0,0.00018658,2]
[378713932,1754986244417,-437.221491,0.00018658,2]
[378713933,1754986244426,-437.221482,0.00018658,2]
[378713934,1754986244435,-1473.81,0.00018658,2]
[378713935,1754986244445,-1473.81,0.00018658,2]
[378713936,1754986244454,-1473.81,0.00018658,2]
[378713937,1754986244463,-1473.81,0.00018658,2]
[378713938,1754986244473,-1473.81,0.00018658,2]
[378713939,1754986244482,-151.0,0.00018659,2]
[378713940,1754986244491,-151.0,0.00018659,2]
[378713941,1754986244501,-151.0,0.00018659,2]
[378713942,1754986244510,-151.0,0.00018659,2]
[378713943,1754986244519,-460.0,0.00018659,2]
[378713944,1754986244529,-151.0,0.00018659,2]
[378713945,1754986244538,-261.964973,0.00018659,2]
[378713946,1754986244547,-151.0,0.00018659,2]
[378713947,1754986244556,-151.0,0.00018659,2]
[378713948,1754986244566,-151.0,0.00018659,2]
[378713949,1754986244575,-151.0,0.00018659,2]
[378713950,1754986244584,-151.0,0.00018659,2]
[378713951,1754986244595,-247.537711,0.00018659,2]
[378713952,1754986244604,-151.0,0.00018659,2]
[378713953,1754986244615,-254.382689,0.00018659,2]
[378713954,1754986244624,-461.84255793,0.00018659,2]
[378713955,1754986244634,-460.0,0.00018659,2]
[378713956,1754986244643,-460.0,0.00018659,2]
[378713957,1754986244653,-164.393467,0.00018659,2]
[378713958,1754986244662,-1473.81,0.00018659,2]
[378713959,1754986244673,-1473.81,0.00018659,2]
[378713960,1754986244683,-5000.0,0.0001866,2]
[378713961,1754986244692,-207.514013,0.0001866,2]
[378713962,1754986244701,-207.514013,0.0001866,2]
[378713963,1754986244711,-151.0,0.0001866,2]
[378713964,1754986244721,-151.0,0.0001866,2]
[378713965,1754986244730,-151.0,0.0001866,2]
[378713966,1754986244740,-151.0,0.0001866,2]
[378713967,1754986244750,-1473.81,0.0001866,2]
[378713968,1754986244759,-1473.81,0.0001866,2]
[378713969,1754986244769,-1473.81,0.0001866,2]
[378713970,1754986244778,-1473.81,0.0001866,2]
[378713971,1754986244787,-1473.81,0.0001866,2]
[378713972,1754986244797,-1473.81,0.0001866,2]
[378713973,1754986244806,-1473.81,0.0001866,2]
[378713974,1754986244816,-1473.81,0.0001866,2]
[378713975,1754986244826,-1473.81,0.0001866,2]
[378713976,1754986244835,-1473.81,0.0001866,2]
[378713977,1754986244844,-207.514013,0.00018661,2]
[378713978,1754986244854,-207.514013,0.00018661,2]
[378713979,1754986244864,-207.514013,0.00018661,2]
[378713980,1754986244874,-207.514013,0.00018661,2]
[378713981,1754986244884,-207.514013,0.00018661,2]
[378713982,1754986244894,-207.514013,0.00018661,2]
[378713983,1754986244904,-207.514013,0.00018661,2]
[378713984,1754986244914,-207.514013,0.00018661,2]
[378713985,1754986244923,-207.514013,0.00018661,2]
[378713986,1754986244933,-207.514013,0.00018661,2]
[378713987,1754986244943,-207.514013,0.00018661,2]
[378713988,1754986244953,-207.514013,0.00018661,2]
[378713989,1754986244962,-207.514013,0.00018661,2]
[378713990,1754986244972,-207.514013,0.00018661,2]
[378713991,1754986244982,-207.514013,0.00018661,2]
[378713992,1754986244992,-207.514013,0.00018661,2]
[378713993,1754986245001,-207.514013,0.00018661,2]
[378713994,1754986245011,-207.514019,0.00018661,2]
[378713995,1754986245020,-151.0,0.00018661,2]
[378713996,1754986245033,-151.0,0.00018661,2]
[378713997,1754986245043,-152.65867,0.00018661,2]
[378713998,1754986245053,-152.887409,0.00018661,2]
[378713999,1754986245064,-1473.81,0.00018661,2]
[378714000,1754986245074,-1473.81,0.00018661,2]
[378714001,1754986245085,-1473.81,0.00018662,2]
[378714002,1754986245094,-1473.81,0.00018662,2]
[378714003,1754986245103,-1473.81,0.00018662,2]
[378714004,1754986245112,-1473.81,0.00018662,2]
[378714005,1754986245123,-1473.90272292,0.00018662,2]
[378714006,1754986245132,-500.0,0.00018666,2]
[378714007,1754986245142,-757079.98225915,0.0001867,2]
[378714008,1754986245151,-27732.66473734,0.0001867,2]
[378714009,1754986245162,-160.0,0.00018677,2]
[378714010,1754986245172,-3920.35747434,0.00018694,2]
[378714011,1754986245182,-250.83,0.000187,2]
[378714012,1754986245192,-505.0,0.00018707,2]
[378714013,1754986245201,-1600.0,0.00018716,2]
[378714014,1754986245211,-636.0,0.00018729,2]
[378714015,1754986245220,-973.263,0.00018729,2]
[378714016,1754986245230,-408.0,0.00018729,2]
[378714017,1754986245239,-394.0,0.00018738,2]
[378714018,1754986245249,-168.0,0.0001875,2]
[378714019,1754986245258,-168.0,0.00018756,2]
[378714020,1754986245267,-150.0,0.00018771,2]
[378714021,1754986245277,-150.0,0.00018771,2]
[378714022,1754986245286,-150.028,0.00018771,2]
[378714023,1754986245296,-150.101,0.00018771,2]
[378714024,1754986245305,-150.0,0.00018771,2]
[378714025,1754986245314,-245.048,0.00018771,2]
[378714026,1754986245324,-160.0,0.00018772,3]
[378714027,1754986245334,-300.0,0.00018779,2]
[378714029,1754986245344,-811.0,0.00018783,2]
[378714031,1754986245353,-346.0,0.00018789,2]
[378714033,1754986245362,-151.0,0.000188,2]
[378714035,1754986245372,-609.69616781,0.000188,2]
[378714036,1754986245381,-505.0,0.00018811,2]
[378714037,1754986245390,-3920.35747434,0.0001883,2]
[378714038,1754986245401,-168.0,0.00018832,2]
[378714039,1754986245410,-265.898,0.0001887,2]
[378714040,1754986245420,-151.0,0.000189,2]
[378714041,1754986245429,-151.0,0.000189,2]
[378714042,1754986245439,-151.0,0.000189,2]
[378714043,1754986245448,-1795.6993089,0.000189,2]
[378714044,1754986245458,-302.8183302,0.000189,2]
[378714045,1754986245467,-150.92772289,0.00018917,2]
[378714046,1754986245476,-460.0,0.00018927,2]
[378714047,1754986245486,-460.0,0.00018927,2]
[378714048,1754986245495,-460.0,0.00018927,2]
[378714049,1754986245550,-471.89,0.00018927,2]
[378714050,1754986245559,-1945.26,0.00018927,2]
[378714051,1754986245569,-4043.71,0.00018927,2]
[378714052,1754986245579,-460.0,0.00018927,2]
[378714053,1754986245588,-796.05,0.00018927,2]
[378714054,1754986245597,-514.45,0.00018927,2]
[378714055,1754986245607,-178.71184586,0.00018927,2]
[378714056,1754986245616,-2904.4,0.00018927,2]
[378714057,1754986245625,-2487.14,0.00018927,2]
[378714058,1754986245635,-554.21,0.00018928,2]
[378714059,1754986245644,-3619.0,0.00018928,2]
[378714060,1754986245653,-841.17,0.00018928,2]
[378714061,1754986245663,-536.39,0.00018928,2]
[378714062,1754986245672,-826.72,0.00018928,2]
[378714063,1754986245682,-1836.03,0.00018928,2]
[378714064,1754986245691,-841.94,0.00018928,2]
[378714065,1754986245701,-460.0,0.00018928,2]
[378714066,1754986245710,-1158.52,0.00018928,2]
[378714068,1754986245720,-420.9119391,0.00018928,2]
[378714070,1754986245729,-1048.53,0.00018928,2]
[378714072,1754986245738,-549.15,0.00018928,2]
[378714074,1754986245747,-1241.16,0.00018928,2]
[378714076,1754986245756,-1683.84,0.00018928,2]